Cogmind - Beta 16 @@@ ROGUE MODE // 2025.11.14 @ 07:19:50 Player: Demo Result: Destroyed by Combat Programmer with EMDS Performance ------------- Evolutions (6) 3000 Regions Visited (12) 2400 Robots Destroyed (67) 335 Value Destroyed (2363) 2363 Prototype IDs (226) 4520 Alien Tech Used (0) 0 Bonus (5755) 5755 TOTAL SCORE: 18373 Bonus ------- High Alert Combat Kills 13 Follower Combat Kills 642 Entered DSFs 500 Registered with UFD 300 Met Optimus in HQ 500 Met Data Miner 300 Used Data Conduit 3000 Pursued by Intercept 500 Cogmind --------- Core Integrity 0/1150 Matter 180/300 Energy 315/315 System Corruption 1% Temperature Cool (0) Movement Hovering (106) Ox1 Location -4/Factory Parts ------- > --- POWER (2) -------- Neutrino Core > --- PROPULSION (5) --- Gyrokinetic Inverter Gyrokinetic Inverter Gyrokinetic Inverter Gyrokinetic Inverter Gyrokinetic Inverter > --- UTILITY (10) ----- Advanced Heat Sink Medium Storage Unit Enhanced Optical Array Improved Signal Interpreter Experimental Propulsion Shielding A0-MCA's Component Scanner > --- WEAPON (2) ------- (None) > --- INVENTORY (10) --- Gyrokinetic Inverter Combat Gravmag System Combat Gravmag System Energy Well (350) Large Matter Pod (150) Long-range Terrain Scanner Experimental Propulsion Shielding CPS Tube (2) Botcube Peak State ------------ > --- POWER ------------ Micro Nuclear Core > --- PROPULSION ------- Gyrokinetic Inverter Gyrokinetic Inverter Gyrokinetic Inverter Gyrokinetic Inverter Gyrokinetic Inverter > --- UTILITY ---------- Medium Storage Unit Improved Signal Interpreter Experimental Propulsion Shielding Experimental Propulsion Shielding Experimental Propulsion Shielding Improved Medium Armor Plating System Mapper A0-MCA's Component Scanner > --- WEAPON ----------- Precision Rocket Launcher Makeshift Axe > --- INVENTORY -------- Gyrokinetic Inverter Combat Gravmag System Combat Gravmag System Energy Well Large Matter Pod Long-range Terrain Scanner Experimental Propulsion Shielding CPS Tube Ripper Botcube [Rating: 93] Favorites ----------- Power Improved Ion Engine Engine Improved Ion Engine Power Core Neutrino Core Propulsion Gravmag Array Treads Improved Medium Treads Wheel Armored Wheel Hover Unit Gravmag Array Utility High-capacity Storage Unit Device IFF Parser Storage High-capacity Storage Unit Processor Improved Signal Interpreter Hackware Hacking Suite Protection Improved Medium Armor Plating Weapon Hypervelocity Gauss Rifle Energy Gun Subdweller Laser Ballistic Gun Hypervelocity Gauss Rifle Ballistic Cannon Flak Cannon Launcher Precision Rocket Launcher Impact Weapon Impact Mace Slashing Weapon Makeshift Axe Build | -11 -10 -10 -10 -9 -6 -6 -6 -6 -5 -5 -5 -4 ------- Run | Yrd Mat Min Sub Scr Fac Low Low Dat Pro Fac DSF Fac Slots Evolved 12 | . . . . . 8 . . . . 2 . 2 Power 1 | . . . . . . . . . . 1 . . Propulsion 3 | . . . . . 3 . . . . . . . Utility 8 | . . . . . 5 . . . . 1 . 2 Weapon . | . . . . . . . . . . . . . Parts Attached 84 | 2 . . 4 7 40 8 2 2 1 1 12 5 Power 9 | . . . . 1 2 1 . . 1 . 1 3 Engine 5 | . . . . 1 2 . . . 1 . . 1 Core 4 | . . . . . . 1 . . . . 1 2 Reactor . | . . . . . . . . . . . . . Propulsion 23 | 2 . . 1 1 13 1 . . . . 5 . Treads 5 | 2 . . . . 3 . . . . . . . Leg . | . . . . . . . . . . . . . Wheel 10 | . . . 1 1 7 1 . . . . . . Hover 8 | . . . . . 3 . . . . . 5 . Flight . | . . . . . . . . . . . . . Utility 37 | . . . . 3 16 5 2 2 . 1 6 2 Device 10 | . . . . 1 4 3 . 1 . . . 1 Storage 7 | . . . . 2 1 1 2 . . 1 . . Processor 5 | . . . . . 3 . . . . . 1 1 Hackware 4 | . . . . . 3 . . . . . 1 . Protection 11 | . . . . . 5 1 . 1 . . 4 . Artifact . | . . . . . . . . . . . . . Weapon 15 | . . . 3 2 9 1 . . . . . . Energy Gun 1 | . . . 1 . . . . . . . . . Energy Cannon . | . . . . . . . . . . . . . Ballistic Gun 6 | . . . 2 2 2 . . . . . . . Ballistic Cannon 1 | . . . . . 1 . . . . . . . Launcher 4 | . . . . . 4 . . . . . . . Special Weapon . | . . . . . . . . . . . . . Impact Weapon 1 | . . . . . 1 . . . . . . . Slashing Weapon 2 | . . . . . 1 1 . . . . . . Piercing Weapon . | . . . . . . . . . . . . . Special Melee Weapon . | . . . . . . . . . . . . . Unidentified Prototypes 2 | . . . . . 2 . . . . . . . Parts Lost 35 | . . . 3 . 11 1 1 7 2 . 4 6 Power 6 | . . . . . 1 . . . 1 . 2 2 Propulsion 9 | . . . 2 . 7 . . . . . . . Utility 12 | . . . . . 2 1 1 4 1 . 1 2 Weapon 8 | . . . 1 . 1 . . 3 . . 1 2 Highest Loss Streak 7 | . . . 3 . 5 1 1 7 1 . 2 3 To Critical Strikes . | . . . . . . . . . . . . . Average Backups 12 | . 1 4 3 14 18 9 9 8 8 7 8 8 Power . | . . . . . . . . . . . . . Propulsion . | . . . . . . . . . . . 1 3 Utility 5 | . 1 3 2 6 8 3 4 4 5 5 4 4 Weapon 5 | . . . . 6 8 4 4 3 2 1 1 . Tool/Special . | . . . . . . . . . . . . . Unused Backups 40 | . . . 1 17 12 2 . . . . 1 7 Power . | . . . . . . . . . . . . . Propulsion 10 | . . . . 3 3 . . . . . 1 3 Utility 17 | . . . 1 5 6 2 . . . . . 3 Weapon 8 | . . . . 5 3 . . . . . . . Tool/Special 5 | . . . . 4 . . . . . . . 1 Average Slot Usage (%) 77 | . 28 28 34 79 90 80 78 61 51 44 66 65 Engine 4 | . . . . 7 5 2 . . . 5 1 1 Core 1 | . . . . . . 3 6 6 4 . 2 2 Treads 3 | . 28 28 13 . 6 . . . . . . . Wheel 13 | . . . 6 25 15 . . . . . . . Hover 5 | . . . . . 2 13 13 9 13 11 26 26 Device 8 | . . . . 6 10 18 20 9 . . . 1 Storage 7 | . . . . 10 6 6 7 13 6 5 5 5 Processor 5 | . . . . . 4 13 13 13 13 11 12 12 Hackware 5 | . . . . . 18 . . . . . 2 4 Protection 3 | . . . . . 5 7 3 1 6 . 4 6 Ballistic Gun 14 | . . . 14 27 9 6 6 . . . . . Slashing Weapon 1 | . . . . . 1 4 4 4 . 8 8 3 Peak Build Rating 93 | 2 2 2 7 30 69 70 72 71 54 47 93 85 Average Rating 42 | 1 2 2 4 19 56 65 69 53 52 45 65 73 On Entrance 36 | . 2 2 2 7 30 64 70 70 54 44 46 79 Avg Prop Armor Cover (%) 10 | 39 41 41 41 4 9 . . 13 . . 5 7 Naked Turns . | . . . . . . . . . . . . . Heaviest Build 72 | . . . 7 60 72 43 42 41 40 19 32 34 Greatest Support 55 | 3 3 3 20 20 46 40 40 40 40 40 55 55 Greatest Overweight (x) 5 | . . . 2 4 5 1 1 1 . . . . Average Overweight (x) 1 | . . . . 2 2 . . . . . . . Largest Inventory Capacity 20 | 5 5 5 5 20 20 10 10 10 10 10 10 10 Average Capacity 14 | 5 5 5 5 16 19 10 10 10 10 10 10 10 Most Carried 20 | . 4 4 5 20 20 10 10 10 10 10 10 10 Average Carried 13 | . 1 4 3 14 19 9 9 9 9 8 9 9 Final Capacity 20 | 5 5 5 5 20 10 10 10 10 10 10 10 10 Final Carried 20 | . 4 4 4 20 10 10 10 9 9 9 10 9 Class Distribution -------------------- 39% | Mutant 29% | Hacker-Mutant 18% | Derelict-Mutant 8% | Scout Dominant Class ---------------- Mutant | -10/Materials Mutant | -10/Mines Mutant | -10/Subcaves Derelict-Mutant | -9/Scraptown Hacker-Mutant | -6/Factory Scout | -6/Lower Caves Mutant | -6/Lower Caves Mutant | -6/Data Miner Mutant | -5/Proximity Caves Mutant | -5/Factory Mutant | -5/DSF Hacker-Mutant | -4/Factory Resources | -11 -10 -10 -10 -9 -6 -6 -6 -6 -5 -5 -5 -4 ----------- Run | Yrd Mat Min Sub Scr Fac Low Low Dat Pro Fac DSF Fac Matter Collected 2910 | 201 . . 35 41 1629 365 170 63 5 139 109 153 Remotely 863 | . . . . . 299 365 170 29 . . . . Salvage Created 3389 | . . . 35 . 1968 486 305 307 5 139 98 46 Parts 147 | . . . 2 . 95 13 13 8 3 4 6 3 Haulers Intercepted 1 | . . . . . . 1 . . . . . . Recyclers Shooed 6 | . . . . . 6 . . . . . . . Parts Field Recycled . | . . . . . . . . . . . . . Retrieved Matter . | . . . . . . . . . . . . . Parts Self-Destructed 10 | . . . . . . 7 3 . . . . . Prevented 3 | . . . . . . 3 . . . . . . Parts Restored . | . . . . . . . . . . . . . Kills | -11 -10 -10 -10 -9 -6 -6 -6 -6 -5 -5 -5 -4 ------- Run | Yrd Mat Min Sub Scr Fac Low Low Dat Pro Fac DSF Fac Combat Hostiles Destroyed 47 | . . . 1 . 20 11 4 4 2 . 4 1 Melee 3 | . . . . . 1 . . . . . 1 1 Guns 8 | . . . 1 . 5 2 . . . . . . Cannons 1 | . . . . . 1 . . . . . . . AOE 33 | . . . . . 13 9 4 2 2 . 3 . Classes Destroyed 13 | . . . 1 . 7 2 1 . 1 . 1 . Worker 4 | . . . . . 3 . . . . . . 1 Builder 6 | . . . . . 6 . . . . . . . Hauler 1 | . . . . . . 1 . . . . . . Recycler 8 | . . . . . 7 . . . . 1 . . Drone 2 | . . . . . . . . . 2 . . . Swarmer 14 | . . . . . 4 5 4 . . . . 1 Cutter 3 | . . . . . . . . . . . 3 . Grunt 13 | . . . . . 8 5 . . . . . . Sentry 6 | . . . . . 5 . . . . . 1 . Programmer 3 | . . . . . 3 . . . . . . . Enhanced Grunt 4 | . . . . . . . . 4 . . . . Subdweller 1 | . . . 1 . . . . . . . . . Samaritan 5 | . . . . . . . 5 . . . . . Fireman 1 | . . . . . . 1 . . . . . . Best Kill Streak 5 | . . . 1 . 5 5 4 4 2 1 3 1 Combat Bots Only 5 | . . . 1 . 5 5 4 4 2 . 3 1 Max Kills in Single Turn 3 | . . . 1 . 3 3 2 2 2 1 1 1 Gunslinging . | . . . . . . . . . . . . . Exploded 3 | . . . . . 3 3 2 1 2 . 1 . Melee 1 | . . . . . 1 . . . . . 1 1 Uniques/NPCs Destroyed 1 | . . . . . . . . 1 . . . . Data Miner (-6/Data Miner) Combat | -11 -10 -10 -10 -9 -6 -6 -6 -6 -5 -5 -5 -4 -------- Run | Yrd Mat Min Sub Scr Fac Low Low Dat Pro Fac DSF Fac Hostile Shots Fired 484 | . 57 7 14 . 201 61 6 20 11 . 35 72 Missed 165 | . 28 3 . . 62 20 2 8 6 . 12 24 Hits 319 | . 29 4 14 . 139 41 4 12 5 . 23 48 Melee 10 | . . . . . . . . . . . 10 . Projectile 309 | . 29 4 14 . 139 41 4 12 5 . 13 48 AOE 12 | . . . . . . . . . . . 2 10 Critical Strikes 11 | . . . 2 . 3 1 . . . . 5 . Part Disruptions 2 | . . . . . . 1 . 1 . . . . Actively Blocked 1 | . . . . . . 1 . . . . . . Damage Taken 6170 | . 268 52 288 . 1795 699 62 529 113 . 626 1738 Core 2093 | . 76 29 112 . 141 105 12 244 14 . 209 1151 Absorbed by Shields . | . . . . . . . . . . . . . Redirected to Shielding 382 | . . . . . . 98 21 . . . 19 244 Ignored by Resistances 47 | . . . . . . . 10 37 . . . . Regen/Repaired (Parts) 85 | . . . . . . . . . . . . 85 Core Remaining (%) 57 | 100 . . . 13 . . . . 39 . 79 . Volleys Fired 167 | . . . 14 . 87 21 21 14 6 . 4 . Largest 2 | . . . 2 . 2 2 1 2 1 . 1 . Hottest 90 | . . . 90 . 76 66 43 86 43 . 43 . Shots Fired 246 | . . . 20 . 155 23 21 17 6 . 4 . Gun 189 | . . . 20 . 140 10 18 1 . . . . Cannon 3 | . . . . . 3 . . . . . . . Launcher 54 | . . . . . 12 13 3 16 6 . 4 . Special . | . . . . . . . . . . . . . Kinetic 188 | . . . 16 . 143 10 18 1 . . . . Thermal 4 | . . . 4 . . . . . . . . . Explosive 34 | . . . . . 7 6 3 8 6 . 4 . Electromagnetic 20 | . . . . . 5 7 . 8 . . . . Robot Hit Streak 13 | . . . 9 . 13 7 11 10 . . . . Robot Miss Streak 2 | . . . 1 . 2 2 2 1 . . . . Penetration Max 2 | . . . . . 2 . . . . . . . Secondary Targets . | . . . . . . . . . . . . . Shots Hit Robots 186 | . . . 13 . 114 17 19 13 . 1 5 4 Core Hits 161 | . . . 2 . 92 24 10 19 2 1 9 2 Critical Kills 16 | . . . . . 14 1 1 . . . . . Critical Parts Destroyed 28 | . . . . . 27 1 . . . . . . Critical Strikes 48 | . . . . . 41 4 1 . . . 1 1 Destroy 44 | . . . . . 41 2 1 . . . . . Sever 4 | . . . . . . 2 . . . . 1 1 Melee Attacks 69 | . . . . . 16 17 8 2 . 2 10 14 Impact . | . . . . . . . . . . . . . Slashing 69 | . . . . . 16 17 8 2 . 2 10 14 Piercing . | . . . . . . . . . . . . . Sneak Attacks 11 | . . . . . 2 1 5 1 . 1 . 1 Combat Hostiles . | . . . . . . . . . . . . . Follow-up Attacks 3 | . . . . . . . . . . . 3 . Damage Inflicted 8433 | . 13 . 256 . 3384 1863 805 1026 113 88 679 206 Guns 1148 | . . . 256 . 770 48 68 6 . . . . Cannons 67 | . . . . . 67 . . . . . . . Explosions 5645 | . . . . . 2356 1482 348 925 113 . 421 . Melee 1515 | . . . . . 191 333 389 95 . 88 213 206 Ramming 58 | . 13 . . . . . . . . . 45 . Kinetic 1151 | . . . 192 . 837 48 68 6 . . . . Thermal 99 | . . . 64 . . . . 35 . . . . Explosive 4506 | . . . . . 1923 1124 348 577 113 . 421 . Electromagnetic 1104 | . . . . . 433 358 . 313 . . . . Impact . | . . . . . . . . . . . . . Slashing 1515 | . . . . . 191 333 389 95 . 88 213 206 Piercing . | . . . . . . . . . . . . . Highest Corruption 3 | . . . . . 2 2 2 2 2 . 3 1 Average Corruption 1 | . . . . . 1 2 2 2 2 . 3 1 Corruption Purged . | . . . . . . . . . . . . . Corruption Blocked . | . . . . . . . . . . . . . Effects 22 | . . . . . 4 10 3 1 1 . . 3 Message Errors 10 | . . . . . 1 4 2 1 1 . . 1 Matter Fused 5 | . . . . . 3 1 . . . . . 1 Heat Flow Errors 2 | . . . . . . 1 . . . . . 1 Energy Discharges 3 | . . . . . . 3 . . . . . . Data Loss (minor) 1 | . . . . . . . 1 . . . . . Weapon Failures 1 | . . . . . . 1 . . . . . . Overload Shots . | . . . . . . . . . . . . . Overflow Damage 521 | . . . . . 117 123 253 28 . . . . Projectiles . | . . . . . . . . . . . . . Explosions 221 | . . . . . 70 123 . 28 . . . . Melee 300 | . . . . . 47 . 253 . . . . . Knockbacks . | . . . . . . . . . . . . . Impact . | . . . . . . . . . . . . . Kinetic . | . . . . . . . . . . . . . Secondary . | . . . . . . . . . . . . . Self-Inflicted Damage 196 | . 6 . . . 86 12 . . 3 . 89 . Shots 7 | . . . . . 2 2 . . 1 . 2 . Rammed 4 | . 2 . . . . . . . . . 2 . Targets Rammed 4 | . 2 . . . . . . . . . 2 . Kicked . | . . . . . . . . . . . . . Crushed . | . . . . . . . . . . . . . Highest Temperature 262 | . . . 15 . 46 262 . 31 2 . . 84 Average Temperature 35 | . . . 15 . 13 73 . 13 1 . . 36 Received Heat Transfer 855 | . 48 30 . . 489 147 12 . 9 . 45 75 Siege Activations . | . . . . . . . . . . . . . Martial Activations . | . . . . . . . . . . . . . Shielding Activations . | . . . . . . . . . . . . . Robots Disrupted . | . . . . . . . . . . . . . Combat Hostiles . | . . . . . . . . . . . . . Robots Corrupted 2 | . . . . . . . . 2 . . . . Combat Hostiles 2 | . . . . . . . . 2 . . . . Parts Fried 12 | . . . . . 3 . . 9 . . . . Impact Corruptions . | . . . . . . . . . . . . . Robots Melted . | . . . . . . . . . . . . . Combat Hostiles . | . . . . . . . . . . . . . Parts Melted . | . . . . . . . . . . . . . Heat Transferred 125 | . . . 75 . . . . 50 . . . . Parts Sabotaged . | . . . . . . . . . . . . . Parts Stolen . | . . . . . . . . . . . . . Parts Stripped . | . . . . . . . . . . . . . Power Chain Reactions 1 | . . . . . . . . 1 . . . . Alert | -11 -10 -10 -10 -9 -6 -6 -6 -6 -5 -5 -5 -4 ------- Run | Yrd Mat Min Sub Scr Fac Low Low Dat Pro Fac DSF Fac Maximum Alert Level 2 | . . . . . 2 . . . . . . 1 Low Security (%) 67 | 100 100 100 . . 61 . . . . 100 100 67 Level 1 29 | . . . . . 34 . . . . . . 32 Level 2 3 | . . . . . 4 . . . . . . . Level 3 . | . . . . . . . . . . . . . Level 4 . | . . . . . . . . . . . . . Level 5 . | . . . . . . . . . . . . . High Security . | . . . . . . . . . . . . . Max Security . | . . . . . . . . . . . . . Peak Influence 492 | . 110 62 . . 492 . . . . 10 173 376 Initial 79 | . . 42 . . . . . . . . 7 79 Average 125 | . 46 44 . . 129 . . . . 2 103 159 Influence Increases 2614 | . 150 30 . . 1215 320 135 20 25 12 186 521 Destroy 0b10 Robot/C 1080 | . . . . . 560 200 80 20 . . 80 140 Destroy 0b10 Robot/NC 125 | . . . . . 90 5 . . 10 5 . 15 Destroy Leader 202 | . . . . . 142 10 10 . . . 10 30 Allied During Kill 153 | . . . . . 80 . . . . . . 73 Successful Hack 47 | . . . . . 36 . . . . 5 . 6 Disable Machine 90 | . . . . . 75 . . . . . . 15 Destroy Structure 242 | . . . . . 82 . . . . 2 96 62 Partial Spotted 45 | . 15 . . . 15 . . . . . . 15 Lose Combat Pursuer 630 | . 135 30 . . 135 105 45 . 15 . . 165 Influence Decreases 2334 | . 40 88 52 . 723 535 243 189 25 2 43 394 Entered New Map 578 | . . 68 28 . . 183 53 169 . . 3 74 Time Decay 1071 | . 40 20 24 . 273 342 180 10 20 2 . 160 Lost Part 245 | . . . . . 110 10 10 10 5 . 40 60 Lost Ally 140 | . . . . . 40 . . . . . . 100 Purge Threat 300 | . . . . . 300 . . . . . . . Squads Dispatched 19 | . 1 . . . 12 . . . . . 2 4 Investigation 5 | . . . . . 3 . . . . . . 2 Extermination 4 | . . . . . 3 . . . . . . 1 Reinforcement 8 | . 1 . . . 5 . . . . . 2 . Assault . | . . . . . . . . . . . . . Garrison 1 | . . . . . 1 . . . . . . . Intercept 1 | . . . . . . . . . . . . 1 Searches Triggered . | . . . . . . . . . . . . . Construction Impeded 2 | . . . . . 2 . . . . . . . Haulers Reinforced 2 | . . . . . 2 . . . . . . . Active Scanning Responses . | . . . . . . . . . . . . . Cargo Convoy Interrupts . | . . . . . . . . . . . . . Stealth | -11 -10 -10 -10 -9 -6 -6 -6 -6 -5 -5 -5 -4 --------- Run | Yrd Mat Min Sub Scr Fac Low Low Dat Pro Fac DSF Fac Distress Signals 8 | . 2 . . . 4 . . . . . . 2 Communications Jammed . | . . . . . . . . . . . . . Distress Signals . | . . . . . . . . . . . . . Times Spotted 129 | . 15 4 1 . 34 21 4 4 4 . 13 29 Peak Tracking Total 11 | . 9 2 1 . 8 5 3 3 8 . 9 11 Tactical Retreats 20 | . 3 1 . . 6 4 1 . 1 . . 4 Traps | -11 -10 -10 -10 -9 -6 -6 -6 -6 -5 -5 -5 -4 ------- Run | Yrd Mat Min Sub Scr Fac Low Low Dat Pro Fac DSF Fac Traps Triggered 3 | . . . . . 2 1 . . . . . . Indirectly . | . . . . . . . . . . . . . Trap Hack Attempts . | . . . . . . . . . . . . . Triggered . | . . . . . . . . . . . . . Disarmed . | . . . . . . . . . . . . . Reprogrammed . | . . . . . . . . . . . . . Reused . | . . . . . . . . . . . . . Traps Extracted . | . . . . . . . . . . . . . Installed . | . . . . . . . . . . . . . Triggered . | . . . . . . . . . . . . . Machines | -11 -10 -10 -10 -9 -6 -6 -6 -6 -5 -5 -5 -4 ---------- Run | Yrd Mat Min Sub Scr Fac Low Low Dat Pro Fac DSF Fac Machines Disabled 6 | . . . . . 5 . . . . . . 1 Max in Single Turn 2 | . . . . . 2 . . . . . . . Garrison Access 1 | . . . . . 1 . . . . . . . Machines Repaired . | . . . . . . . . . . . . . Machines Dismantled . | . . . . . . . . . . . . . Machines Sabotaged . | . . . . . . . . . . . . . Overloaded Fab Kills . | . . . . . . . . . . . . . Hacking | -11 -10 -10 -10 -9 -6 -6 -6 -6 -5 -5 -5 -4 --------- Run | Yrd Mat Min Sub Scr Fac Low Low Dat Pro Fac DSF Fac Machines Accessed 23 | . . . . 2 12 1 . 4 . 1 . 3 Terminals 8 | . . . . . 7 . . . . 1 . . Fabricators 1 | . . . . . . . . . . . . 1 Repair Stations 1 | . . . . . . . . . . . . 1 Recycling Units 3 | . . . . . 2 . . . . . . 1 Scanalyzers 2 | . . . . . 2 . . . . . . . Garrison Access 1 | . . . . . 1 . . . . . . . Total Hacks 99 | . . . . 20 43 1 . 29 . 1 . 5 Successful 78 | . . . . 20 24 1 . 29 . 1 . 3 Failed 20 | . . . . . 18 . . . . . . 2 Catastrophic . | . . . . . . . . . . . . . Database Lockouts 1 | . . . . . 1 . . . . . . . Manual 33 | . . . . . 28 . . . . . . 5 Terminals 36 | . . . . . 35 . . . . 1 . . Fabricators 2 | . . . . . . . . . . . . 2 Repair Stations 1 | . . . . . . . . . . . . 1 Recycling Units 5 | . . . . . 3 . . . . . . 2 Scanalyzers 3 | . . . . . 3 . . . . . . . Garrison Access 2 | . . . . . 2 . . . . . . . Terminal Hacks 64 | . . . . 20 13 1 . 29 . 1 . . Record 31 | . . . . 20 . . . 11 . . . . Part Schematic 10 | . . . . . . . . 10 . . . . Robot Schematic 5 | . . . . . . . . 5 . . . . Prototype ID Bank 4 | . . . . . 1 . . 3 . . . . Open Door 1 | . . . . . . 1 . . . . . . Open DSF 1 | . . . . . . . . . . 1 . . Branch Access Points 2 | . . . . . 2 . . . . . . . Emergency Access Points 2 | . . . . . 2 . . . . . . . Terminal Index 1 | . . . . . 1 . . . . . . . Alert Level 2 | . . . . . 2 . . . . . . . Unreport Threat 2 | . . . . . 2 . . . . . . . Locate Traps 1 | . . . . . 1 . . . . . . . Recall Investigation 1 | . . . . . 1 . . . . . . . Registered Components 1 | . . . . . 1 . . . . . . . Fabricator Hacks . | . . . . . . . . . . . . . Repair Station Hacks . | . . . . . . . . . . . . . Recycling Unit Hacks . | . . . . . . . . . . . . . Scanalyzer 1 | . . . . . 1 . . . . . . . Retrieve Study 1 | . . . . . 1 . . . . . . . Garrison Access Hacks 1 | . . . . . 1 . . . . . . . Seal Access 1 | . . . . . 1 . . . . . . . Unauthorized Hacks 12 | . . . . . 9 . . . . . . 3 Terminals 7 | . . . . . 7 . . . . . . . Track 1 | . . . . . 1 . . . . . . . Botnet 6 | . . . . . 6 . . . . . . . Fabricators 1 | . . . . . . . . . . . . 1 Fabnet 1 | . . . . . . . . . . . . 1 Repair Stations 1 | . . . . . . . . . . . . 1 Patch 1 | . . . . . . . . . . . . 1 Recycling Units 3 | . . . . . 2 . . . . . . 1 Fedlink 1 | . . . . . 1 . . . . . . . Scrapoids 2 | . . . . . 1 . . . . . . 1 Scanalyzers . | . . . . . . . . . . . . . Garrison Access . | . . . . . . . . . . . . . Data Cores Recovered . | . . . . . . . . . . . . . Used . | . . . . . . . . . . . . . Hacking Detections 12 | . . . . . 10 . . . . . . 2 Full Trace Events . | . . . . . . . . . . . . . Feedback Events . | . . . . . . . . . . . . . Feedback Blocked . | . . . . . . . . . . . . . Robot Schematics Acquired 5 | . . . . . . . . 5 . . . . Robots Built . | . . . . . . . . . . . . . Authchips . | . . . . . . . . . . . . . Time . | . . . . . . . . . . . . . Total Robot Build Rating . | . . . . . . . . . . . . . Part Schematics Acquired 10 | . . . . . . . . 10 . . . . Parts Built . | . . . . . . . . . . . . . Authchips . | . . . . . . . . . . . . . Time . | . . . . . . . . . . . . . Total Part Build Rating . | . . . . . . . . . . . . . Part Studies Acquired 1 | . . . . . 1 . . . . . . . Parts Repaired . | . . . . . . . . . . . . . Time . | . . . . . . . . . . . . . Parts Recycled . | . . . . . . . . . . . . . Recycled Matter . | . . . . . . . . . . . . . Retrieved Matter . | . . . . . . . . . . . . . Retrieved Components . | . . . . . . . . . . . . . Parts Scanalyzed . | . . . . . . . . . . . . . Part Schematics Acquired . | . . . . . . . . . . . . . Parts Damaged . | . . . . . . . . . . . . . Bothacking | -11 -10 -10 -10 -9 -6 -6 -6 -6 -5 -5 -5 -4 ------------ Run | Yrd Mat Min Sub Scr Fac Low Low Dat Pro Fac DSF Fac Used RIF Installer . | . . . . . . . . . . . . . Robots Hacked . | . . . . . . . . . . . . . Non-combat . | . . . . . . . . . . . . . Combat . | . . . . . . . . . . . . . Robot Hacks Applied . | . . . . . . . . . . . . . Relay Couplers Released . | . . . . . . . . . . . . . Fabnet Peak Effective % . | . . . . . . . . . . . . . Robots Rewired 1 | . . . . . 1 . . . . . . . Allies Hacked . | . . . . . . . . . . . . . Hacks Repelled . | . . . . . . . . . . . . . Allies | -11 -10 -10 -10 -9 -6 -6 -6 -6 -5 -5 -5 -4 -------- Run | Yrd Mat Min Sub Scr Fac Low Low Dat Pro Fac DSF Fac Total Allies 11 | . . . . . 6 . . . . . . 5 Largest Group 6 | . . . . . 6 . . . . . . 5 Highest-Rated Group 241 | . . . . . 172 . . . . . . 241 Highest-Rated Ally 50 | . . . . . 32 . . . . . . 50 Total Orders 1 | . . . . . 1 . . . . . . . RETURN 1 | . . . . . 1 . . . . . . . Ally Attacks 147 | . . . . . 71 . . . . . . 76 Total Damage 2303 | . . . . . 1196 . . . . . . 1107 Kills 18 | . . . . . 10 . . . . . . 8 Allies Corrupted . | . . . . . . . . . . . . . Allies Melted . | . . . . . . . . . . . . . Intel | -11 -10 -10 -10 -9 -6 -6 -6 -6 -5 -5 -5 -4 ------- Run | Yrd Mat Min Sub Scr Fac Low Low Dat Pro Fac DSF Fac Active Infowar (turns) 3941 | . . . . 1004 1544 763 377 59 . . . 194 Optics 194 | . . . . . . . . . . . . 194 Sensors 950 | . . . . . 210 740 . . . . . . IFF 2767 | . . . . 1004 765 562 377 59 . . . . Structural 1329 | . . . . . 1329 . . . . . . . Robot Analysis Total 154 | . . . . . . . . 154 . . . . Derelict Logs Recovered 5 | . . . . 2 . 1 1 . 1 . . . Drone Launches 3 | . . . . . 3 . . . . . . . Drone Recoveries 3 | . . . . . 3 . . . . . . . Exploration | -11 -10 -10 -10 -9 -6 -6 -6 -6 -5 -5 -5 -4 ------------- Run | Yrd Mat Min Sub Scr Fac Low Low Dat Pro Fac DSF Fac Turns Passed 6131 | 18 89 43 244 2141 1711 763 377 151 117 36 114 327 Spaces Moved 5101 | 30 165 44 164 1421 980 929 479 153 166 45 97 428 Core 318 | 30 165 44 79 . . . . . . . . . Treads . | . . . . . . . . . . . . . Legs . | . . . . . . . . . . . . . Wheels 2446 | . . . 85 1421 940 . . . . . . . Hover 2337 | . . . . . 40 929 479 153 166 45 97 428 Flight . | . . . . . . . . . . . . . Fastest Speed 50 | 50 50 50 50 105 56 56 56 56 56 56 54 54 Average Speed 93 | 50 50 50 84 132 129 57 62 61 56 56 61 64 Slowest Speed 165 | 50 50 50 150 150 165 106 106 110 56 56 66 70 Overloaded Moves . | . . . . . . . . . . . . . Propulsion Burnouts . | . . . . . . . . . . . . . Robots Hopped . | . . . . . . . . . . . . . Potential Cave-ins 4 | . . . . . . . . . 4 . . . Cave-ins Triggered . | . . . . . . . . . . . . . Exploration Rate (%) 37 | 3 47 15 19 62 23 71 65 78 32 2 53 18 Regions Visited 12 Branch Regions 7 Pre-discovered Areas 32 | . . . 1 5 . 1 . 25 . . . . Known Exits Taken 6 | . . . . . 1 1 1 1 1 1 . . Unknown Exits Taken 5 | 1 1 1 1 1 . . . . . . . . Scrap Searched 13 | . . . 2 4 . 5 2 . . . . . Spaces Dug 106 | . . . . . 10 17 2 . 55 1 13 8 Terrain Destroyed 393 | . . . . . 82 68 35 19 117 1 63 8 Melee 28 | . . . . . 10 7 2 . . 1 . 8 Projectile . | . . . . . . . . . . . . . AOE 358 | . . . . . 65 61 33 19 117 . 63 . Terrain Rammed . | . . . . . . . . . . . . . Walls Destroyed . | . . . . . . . . . . . . . Machines Disabled . | . . . . . . . . . . . . . Actions | -11 -10 -10 -10 -9 -6 -6 -6 -6 -5 -5 -5 -4 --------- Run | Yrd Mat Min Sub Scr Fac Low Low Dat Pro Fac DSF Fac Total 6110 | 31 170 64 248 1705 1246 1110 524 187 182 52 133 458 Wait 447 | . . 21 63 171 51 111 12 . 9 . . 9 Move 5090 | 29 164 43 163 1420 979 928 478 152 165 44 97 428 Hop . | . . . . . . . . . . . . . Pick Up 102 | . 4 . 3 61 20 5 . 3 1 1 4 . Fast Attach 50 | 2 . . 2 4 18 3 1 3 . 1 11 5 Attach 29 | . . . 2 3 11 2 1 4 1 2 2 1 Detach 8 | . . . . . 2 1 1 2 . 1 1 . Swap 51 | . . . . 1 29 13 2 4 . . 2 . Drop 95 | . . . 1 45 30 9 . 4 . 1 4 1 Fire 167 | . . . 14 . 87 21 21 14 6 . 4 . Melee 65 | . . . . . 16 17 8 1 . 2 7 14 Ram 3 | . 2 . . . . . . . . . 1 . Kick . | . . . . . . . . . . . . . Crush . | . . . . . . . . . . . . . Escape Stasis . | . . . . . . . . . . . . . Rewire 3 | . . . . . 3 . . . . . . . Trap . | . . . . . . . . . . . . . Miscellaneous . | . . . . . . . . . . . . . Route ------- -11/Scrapyard -10/Materials (discovered 2 exits: [*Mat] / [*Min]) -10/Mines -10/Subcaves -9/Scraptown (discovered 2 exits: *Fac x2) -6/Factory (discovered 5 exits: Fac / *Low x2 / *Ext x2) -6/Lower Caves -6/Lower Caves (discovered 2 exits: *Fac / *Dat) -6/Data Miner -5/Proximity Caves -5/Factory -5/DSF -4/Factory History --------- Turn | Location | Event 7 | -11/Scrapyard | Discovered new exit (range 15) 19 | -11/Scrapyard | Entered Materials 67 | -10/Materials | Discovered new exit (range 4) 92 | -10/Materials | Discovered new exit (range 16) 108 | -10/Materials | Entered Mines 147 | -10/Mines | Discovered new exit (range 5) 151 | -10/Mines | Entered Subcaves 152 | -10/Subcaves | Approached by a straggling Scientist 154 | -10/Subcaves | Learned location of Zion (-7) 154 | -10/Subcaves | Met a Zionite searching for "candidates" 252 | -10/Subcaves | Disturbed a concealed Subdweller 254 | -10/Subcaves | Core integrity fell below 50% 281 | -10/Subcaves | Core integrity fell below 20% 308 | -10/Subcaves | Build established: Mutant 309 | -10/Subcaves | Lost 3 parts (2n1w) 393 | -10/Subcaves | Scientist uncovered a shortcut to Scraptown 395 | -10/Subcaves | Entered Scraptown 478 | -9/Scraptown | Scanned Subdweller tech in exchange for log data 481 | -9/Scraptown | Learned location of 2 exits from Research 482 | -9/Scraptown | Learned 8 Factory zone layouts 492 | -9/Scraptown | Discovered new exit (range 13) 554 | -9/Scraptown | Visited UFD Registry 554 | -9/Scraptown | Registered with UFD as "Thermoslasher" 633 | -9/Scraptown | Visited Red Mages 643 | -9/Scraptown | Visited TADAMA 658 | -9/Scraptown | Visited Bundlers 810 | -9/Scraptown | Visited Cyclists 819 | -9/Scraptown | Entered Cyclist Reading Room 864 | -9/Scraptown | Visited Awakened 888 | -9/Scraptown | Visited Cave Peace 906 | -9/Scraptown | Visited SPCMW 998 | -9/Scraptown | Build established: Derelict-Mutant 1155 | -9/Scraptown | Visited Botcube Research 1175 | -9/Scraptown | Visited LU-1G1's Boring Crew 1195 | -9/Scraptown | Visited Research Penetration Think Tank 1318 | -9/Scraptown | Visited A0-MCA Data Center 1327 | -9/Scraptown | Given a B- rating by A0-MCA 1331 | -9/Scraptown | Found A0-MCA's Component Scanner 1354 | -9/Scraptown | Visited Supply Room 1440 | -9/Scraptown | Visited Cartography Club 1493 | -9/Scraptown | Visited Observation Area 1520 | -9/Scraptown | Visited Junk Repository 1699 | -9/Scraptown | Found Botcube 2004 | -9/Scraptown | Found Deep Structural Scanner 2015 | -9/Scraptown | Learned location of Warlord (-5) 2015 | -9/Scraptown | Learned location of Extension (-6) 2015 | -9/Scraptown | Learned location of Hub_04(d) (-6) 2015 | -9/Scraptown | Learned location of Quarantine (-2) 2015 | -9/Scraptown | Learned 12 Materials zone layouts 2015 | -9/Scraptown | Learned 8 Factory zone layouts 2015 | -9/Scraptown | Learned 8 Research zone layouts 2015 | -9/Scraptown | Learned 16 Research zone layouts 2015 | -9/Scraptown | Learned 8 Lower Caves zone layouts 2015 | -9/Scraptown | Learned 20 Upper Caves zone layouts 2015 | -9/Scraptown | Learned 16 Proximity Caves zone layouts 2015 | -9/Scraptown | Learned 4 Hub_04(d) zone layouts 2015 | -9/Scraptown | Learned location of 1 exit from Factory 2015 | -9/Scraptown | Learned location of 2 exits from Upper Caves 2015 | -9/Scraptown | Learned location of 3 exits from Proximity Caves 2067 | -9/Scraptown | Build established: Mutant 2451 | -9/Scraptown | Met Optimus 2451 | -9/Scraptown | Accepted into 0bPrime 2529 | -9/Scraptown | Discovered new exit (range 5) 2536 | -9/Scraptown | Entered Factory 2536 | -6/Factory | Evolved 8 slots: Propulsion x3, Utility x5 2537 | -6/Factory | Identified exit to Lower Caves 2538 | -6/Factory | Identified exit to Factory 2832 | -6/Factory | Build established: Hacker-Mutant 3020 | -6/Factory | Loaded intel: 8 recycling unit locations 3047 | -6/Factory | Central database locked down 3201 | -6/Factory | Discovered new exit (range 11) 3241 | -6/Factory | Identified exit to Extension 3525 | -6/Factory | Garrison activated, responded to threat 3856 | -6/Factory | Lost 5 parts (1p3n1w) 4141 | -6/Factory | Lost 3 parts (2n1u) 4177 | -6/Factory | Scrapoids reinforcements arrived? 4247 | -6/Factory | Entered Lower Caves 4248 | -6/Lower Caves | Identified exit to Lower Caves 4748 | -6/Lower Caves | Ambushed by wild Derelicts 4772 | -6/Lower Caves | Attracted the attention of an 0b10 checkpoint 4971 | -6/Lower Caves | Build established: Scout 5010 | -6/Lower Caves | Entered another Lower Caves area 5030 | -6/Lower Caves | Discovered exit to Factory (range 5) 5057 | -6/Lower Caves | Encountered a Warlord checkpoint 5099 | -6/Lower Caves | Identified exit to Data Miner 5309 | -6/Lower Caves | Build established: Mutant 5387 | -6/Lower Caves | Entered Data Miner 5387 | -6/Data Miner | Discovered new exit (range 6) 5401 | -6/Data Miner | Met Data Miner 5417 | -6/Data Miner | Learned location of Section 7 (-2) 5417 | -6/Data Miner | Acquired the access code to Warlord's prototype stash 5422 | -6/Data Miner | Received God Mode back door access code from Data Miner 5432 | -6/Data Miner | Destroyed Data Miner 5434 | -6/Data Miner | Interfaced with the Data Conduit 5436 | -6/Data Miner | Found System Mapper 5476 | -6/Data Miner | Core integrity fell below 50% 5499 | -6/Data Miner | Lost 7 parts (4u3w) 5536 | -6/Data Miner | Identified exit to Proximity Caves 5538 | -6/Data Miner | Entered Proximity Caves 5555 | -5/Proximity Caves | Spotted B-75 Beast 5573 | -5/Proximity Caves | Learned Factory security intel 5653 | -5/Proximity Caves | Attracted the attention of an 0b10 outpost 5655 | -5/Proximity Caves | Entered Factory 5655 | -5/Factory | Evolved 2 slots: Power x1, Utility x1 5657 | -5/Factory | Loaded intel: 281 machine locations 5690 | -5/Factory | Identified exit to DSF 5691 | -5/Factory | Entered DSF 5692 | -5/DSF | Loaded intel: 3 machine locations 5731 | -5/DSF | Additional patrols routed to DSF 5796 | -5/DSF | Discovered new exit (range 16) 5804 | -5/DSF | Identified exit to Factory 5805 | -5/DSF | Entered Factory 5805 | -4/Factory | Evolved 2 slots: Utility x2 5806 | -4/Factory | Loaded intel: 296 machine locations 5827 | -4/Factory | Spotted B-86 Titan 5846 | -4/Factory | Core integrity fell below 50% 5873 | -4/Factory | Core integrity fell below 20% 5996 | -4/Factory | Build established: Hacker-Mutant 6020 | -4/Factory | Scrapoid reinforcements arrived 6109 | -4/Factory | Intercept squad dispatched 6127 | -4/Factory | Spotted Tracker 6128 | -4/Factory | Spotted Tracker 6129 | -4/Factory | Spotted Combat Programmer 6132 | -4/Factory | Destroyed by Combat Programmer with EMDS Last Messages --------------- Drive [Tracker]. 06128_ Component scanned: Linked Autogun [Tracker]. 06128_ Component scanned: Immobilizer [Tracker]. 06128_ Lgt. Nuclear Core destroyed. 06128_ Gyrokinetic Inverter temporarily disabled. Tracker: "THREAT CONFIRMED. DEPLOY COMBAT PROGRAMMER." 06129_ Gyrokinetic Inverter temporarily disabled. 06130_ Component scanned: Exp. Remote Datajack [Combat Programmer]. 06130_ Component scanned: EMDS [Combat Programmer]. 06130_ Penetrated by EMDS Slug. 06132_ Gyrokinetic Inverter temporarily disabled. 06132_ Penetrated by EMDS Slug. 06132_ Ripper destroyed. Map ----- +----------------------------------------------------+ | | | | | | | | | | | | | ?????????????????????????????????????????????????? | | ?????????????????????????????????????????????????? | | ?????????????????????????????????????"?"?"?"?"???? | | ?????????????????????????????????????"?"?"?"?"???? | | ?????????????????????????????????????"?"?"?"?"???? | | ??????? ??"""""??????????????????????"?"?"?"?"???? | | "?"???# ?"""""??????????????????????"?"?"?"?"???? | | "?"???# """????????????????????????"?"?"?"?"???? | | "?"???? ??????????????????????????"?"?"?"?"???? | | "?"?????!! ??????????????????????????"?"?"?"?"???? | | "?"???#??! ??????#######????????????"?"?"?"?"???? | | "?"???# !? ?????# ! #????????????????????????? | | "?"????? ? ????# #????????????????????????? | | "?"??????? ???# " ?????????????????????????? | | "?"??????"?" ??# ?????????????????????????? | | ????????""G"" [ ?# ! ?????????????????????????? | | "?"???????????? ?# #?????????????????????????? | | "?" ############/## #??#############??????????? | | "?" p ### +??????????? | | "?" k s @ #??????????? | | "?" ### #??????????? | | "?"???###########+###"##?? #??????????? | | "?"??????????# ##???? #??????????? | | "?"??????????# "" #????? +??????????? | | "?"??????????# """ #?????? #??????????? | | ????????????## S" #?????? #??????????? | | ????????????# """ #??????? #??????????? | | ????????????## """ #??????? #?? ?????? | | ?????????????# #???????? # ?????? | | ?????????????# ! #???????? # ?????? | | ?????????????# !#?????????######## ?????? | | ?????????????# ] ]] ################## #????? | | ?????????????# ] # [ # #????? | | ?????????????# # # #????? | | ?????????????# " ! # |! #????? | | ?????????????# """"" # #[* #????? | | ?????????????# """"" # """""" """""" " +????? | | ?????????????# """ # """""" """""" # #? ??? | | ?????????????# + """""" """""" # " ? | | ?????????????########" """""" """""" " #????? | | ????????????????????#" ]# #????? | | ?"""""""""??????????###########"####### #????? | | ?"""""""""????????????????????## #????? | | ?"""""""""?????????????????????# #????? | +----------------------------------------------------+ Best States ------------- Heat Dissipation 62 Energy Generation 28 Energy Capacity 515 Matter Stores 300 Matter Capacity 300 Sight Range 22 Robot Scan Range 15 Terrain Scan Density 10 Armor Coverage 375 Resistance: TH 25 Propulsion Shielding 90 Utility Shielding 66 Weapon Shielding 66 Evasion (%) 54 Targeting Accuracy 8 Core Analysis 6 Recoil Reduction 3 Energy Filtering 50 Offensive Hacking 32 Item Schematics ----------------- Combat Drone Bay | -6/Data Miner | Free Lgt. Regenerative Plating | -6/Data Miner | Free Cld. Nuclear Pulse Thruster | -6/Data Miner | Free Imp. Matter Compressor | -6/Data Miner | Free Imp. KE Penetrator | -6/Data Miner | Free Hvy. Siege Treads | -6/Data Miner | Free Adv. Transmission Jammer | -6/Data Miner | Free Lgt. Antimatter Reactor | -6/Data Miner | Free Hvy. Disruptor Cannon | -6/Data Miner | Free Fusion Bomb Launcher | -6/Data Miner | Free Robot Schematics ------------------ I-36 Angel | -6/Data Miner | Free G-50 Soldier | -6/Data Miner | Free H-66 Slayer | -6/Data Miner | Free B-48 Gladiator | -6/Data Miner | Free G-67 Veteran | -6/Data Miner | Free Fabricated ------------ Nothing Repaired ---------- Nothing Studied --------- Arm. Wheel | -6/Factory | Hacked Alien Tech Used ----------------- None Achievements -------------- None Challenges ------------ None Game ------ Seed CouplerServoMapper Manual? 0 Play Time 00:55:49 Cumulative 404.1 hours Start 2025.11.14 @ 06:24:32 End 2025.11.14 @ 07:19:50 Sessions 1 Manual Loads 0 Difficulty Rogue Special Mode None Game No. 375 Rogue 375 Adventurer 0 Explorer 0 Win Type - Total 3 Types 2/1/0/0/0/0/0/0/0/0 Lore% 85 Gallery% 84 Achievement% 63 Wizard Run 0 Options --------- Layout 1 ASCII 0 Keyboard 0 Movement Numpad Keybinds 0 Fullscreen 1 Font 24/Smallcaps Map View 50x35 Zoom Use 0% Tactical HUD 1 Map Filters NONE Filters NONE Steam 1 RUN: 02d0d9e9-2d01-4d9a-9dbf-c9365d238f07